bitfinex-derivatives/quotes_BTCF0:USTF0_20240824
["timestamp","ask_amount","ask_price","bid_price","bid_amount"]
[1724533181216,0.10204,64172.0,64171.0,0.001]
[1724533181217,0.17992,64172.0,64171.0,0.001]
[1724533181417,0.22892,64172.0,64171.0,0.001]
[1724533182427,0.27548932,64172.0,64171.0,0.001]
[1724533183327,0.22892,64172.0,64171.0,0.001]
[1724533185227,0.29105234,64172.0,64171.0,0.001]
[1724533186223,0.22892,64172.0,64171.0,0.001]
[1724533186732,0.27742,64172.0,64171.0,0.001]
[1724533191431,0.22892,64172.0,64171.0,0.001]
[1724533191929,0.29100498,64172.0,64171.0,0.001]
[1724533192639,0.22892,64172.0,64171.0,0.001]
[1724533193230,0.30650749,64172.0,64171.0,0.001]
[1724533193424,0.22892,64172.0,64171.0,0.001]
[1724533194236,0.30650478,64172.0,64171.0,0.001]
[1724533194927,0.38438478,64172.0,64171.0,0.001]
[1724533195132,0.3068,64172.0,64171.0,0.001]
[1724533197334,0.33205417,64172.0,64171.0,0.001]
[1724533199332,0.33205435,64172.0,64171.0,0.001]
[1724533199538,0.077883,64169.0,64168.0,0.00023377]
[1724533199734,0.25548268,64169.0,64168.0,0.00023377]
[1724533200337,0.25552268,64169.0,64168.0,0.00023377]
[1724533201040,1.12304268,64169.0,64159.0,0.04664492]
[1724533201337,0.538694,64160.0,64159.0,4e-05]
[1724533201733,0.538734,64160.0,64159.0,4e-05]
[1724533202541,0.539734,64160.0,64159.0,4e-05]
[1724533203029,0.58627081,64160.0,64159.0,4e-05]
[1724533204036,0.58626799,64160.0,64159.0,4e-05]
[1724533204241,0.60833187,64160.0,64159.0,4e-05]
[1724533206143,0.60933187,64160.0,64159.0,4e-05]
[1724533207835,0.56279788,64160.0,64159.0,4e-05]
[1724533209437,0.46279788,64160.0,64159.0,4e-05]
[1724533209642,0.56279788,64160.0,64159.0,4e-05]
[1724533211036,0.62487226,64160.0,64159.0,4e-05]
[1724533212547,0.26407226,64160.0,64159.0,4e-05]
[1724533212747,0.62487226,64160.0,64159.0,4e-05]
[1724533214151,0.56279788,64160.0,64159.0,4e-05]
[1724533214353,0.46279788,64160.0,64159.0,4e-05]
[1724533214541,0.56279788,64160.0,64159.0,4e-05]
[1724533214844,0.540734,64160.0,64159.0,4e-05]
[1724533215642,0.179934,64160.0,64159.0,4e-05]
[1724533215843,0.20260885,64160.0,64159.0,4e-05]
[1724533216147,0.20260885,64160.0,64159.0,0.077936]
[1724533216951,0.10260885,64160.0,64159.0,0.077936]
[1724533217137,0.20260885,64160.0,64159.0,0.077936]
[1724533218243,0.20260885,64160.0,64159.0,0.12454092]
[1724533218944,0.179934,64160.0,64159.0,0.12454092]
[1724533219655,0.179934,64160.0,64159.0,0.077936]
[1724533220243,0.179934,64160.0,64159.0,0.12454092]
[1724533221242,0.179934,64160.0,64159.0,0.077936]
[1724533223348,0.24200838,64160.0,64159.0,0.077936]
[1724533226254,0.24200838,64160.0,64159.0,0.14006534]
[1724533226950,0.24200838,64160.0,64159.0,0.077936]
[1724533227751,0.24200838,64160.0,64159.0,0.14006534]
[1724533228156,0.179934,64160.0,64159.0,0.077936]
[1724533231150,0.179934,64160.0,64159.0,0.14006534]
[1724533235261,0.2421245,64160.0,64159.0,0.077936]
[1724533235462,0.179934,64160.0,64159.0,0.077936]
[1724533239566,0.22657284,64160.0,64159.0,0.077936]
[1724533241259,0.179934,64160.0,64159.0,4e-05]
[1724533241464,0.179934,64160.0,64159.0,0.06234331]
[1724533241651,0.179934,64160.0,64159.0,0.077936]
[1724533242663,0.079934,64160.0,64159.0,0.077936]
[1724533242866,0.179934,64160.0,64159.0,0.077936]
[1724533245668,0.24212956,64160.0,64159.0,0.077936]
[1724533247063,0.24212956,64160.0,64159.0,0.438736]
[1724533247468,0.179934,64160.0,64159.0,0.50105459]
[1724533247658,0.179934,64160.0,64159.0,0.438736]
[1724533248259,0.06423406,64160.0,64159.0,0.438736]
[1724533248458,0.00204,64160.0,64159.0,0.438736]
[1724533248667,0.56423406,64160.0,64130.0,0.01743013]
[1724533248870,0.56423406,64160.0,64086.0,0.14581187]
[1724533248871,0.3608,64108.0,64086.0,0.14581187]
[1724533249059,0.3608,64108.0,64057.0,0.07802]
[1724533249060,0.24199665,64084.0,64077.0,0.09357814]
[1724533249265,0.3608,64078.0,64074.0,0.08357814]
[1724533249467,0.3608,64075.0,64071.0,0.15584]
[1724533249667,0.23100826,64075.0,64071.0,1.02404]
[1724533249973,0.07766528,64074.0,64072.0,0.4682]
[1724533250173,0.07766269,64076.0,64073.0,0.829]
[1724533250469,0.3608,64078.0,64075.0,0.1]
[1724533250664,0.3608,64078.0,64075.0,0.5]
[1724533250865,0.3608,64078.0,64076.0,0.4682]
[1724533251060,0.3608,64078.0,64077.0,0.1]
[1724533251259,0.3608,64078.0,64077.0,0.5682]
[1724533251464,0.3608,64078.0,64077.0,0.9682]
[1724533252068,0.3618,64078.0,64077.0,0.9682]
[1724533252369,0.3628,64078.0,64077.0,0.9682]
[1724533252669,0.3628,64078.0,64077.0,0.8682]
[1724533253675,0.3618,64078.0,64077.0,0.8682]
[1724533253867,0.3628,64078.0,64077.0,0.8682]
[1724533254268,0.3618,64078.0,64077.0,0.8682]
[1724533254467,0.3628,64078.0,64077.0,0.8682]
[1724533255364,0.3628,64078.0,64077.0,0.4682]
[1724533255572,0.3628,64078.0,64067.0,0.02219397]
[1724533255573,0.0749,64072.0,64063.0,0.12544]
[1724533255778,0.7216,64064.0,64059.0,0.078017]
[1724533255970,0.7216,64064.0,64060.0,0.12544]
[1724533256272,0.7216,64064.0,64061.0,0.078015]
[1724533256469,0.7216,64064.0,64061.0,0.203455]
[1724533256668,0.7216,64064.0,64061.0,0.671735]
[1724533256867,0.7226,64064.0,64061.0,0.671735]
[1724533257471,0.7216,64064.0,64061.0,0.671735]
[1724533257666,0.7226,64064.0,64061.0,0.671735]
[1724533257973,0.7226,64064.0,64062.0,0.546293]
[1724533258471,0.7226,64064.0,64063.0,0.59372]
[1724533258673,0.7226,64064.0,64063.0,0.12544]
[1724533258878,0.7226,64064.0,64063.0,0.59372]
[1724533259177,0.7236,64064.0,64063.0,0.59372]
[1724533259774,0.7226,64064.0,64063.0,0.59372]
[1724533259974,0.7236,64064.0,64063.0,0.99372]
[1724533260365,0.7226,64064.0,64063.0,0.99372]
[1724533260567,0.7236,64064.0,64063.0,0.99372]
[1724533260971,0.7236,64064.0,64063.0,0.59372]
[1724533261583,0.7226,64064.0,64063.0,0.59372]
[1724533261782,0.7236,64064.0,64063.0,0.99372]
[1724533262386,0.7226,64064.0,64063.0,0.98409426]
[1724533262688,0.7226,64064.0,64063.0,0.58409426]
[1724533262689,0.7236,64064.0,64063.0,0.58409426]
[1724533263095,0.7226,64064.0,64063.0,0.58409426]
[1724533263279,0.7236,64064.0,64063.0,0.58409426]
[1724533263482,0.7236,64064.0,64063.0,0.46828]
[1724533263790,0.7226,64064.0,64063.0,0.99376]
[1724533264084,0.7236,64064.0,64063.0,0.99376]
[1724533265187,0.7236,64064.0,64063.0,0.86828]
[1724533265384,0.7236,64064.0,64063.0,0.12552]
[1724533266181,0.7226,64064.0,64063.0,0.12552]
[1724533266381,0.7236,64064.0,64063.0,0.04747822]
[1724533267292,0.7236,64064.0,64063.0,0.09617822]
[1724533267483,0.7236,64064.0,64063.0,0.04747822]
[1724533267691,0.7226,64064.0,64063.0,0.12552]
[1724533267985,0.7236,64064.0,64063.0,0.12552]
[1724533268592,0.7236,64064.0,64063.0,0.203532]
[1724533268991,0.7985,64064.0,64063.0,0.203532]
[1724533269190,0.7985,64064.0,64051.0,0.0487]
[1724533269191,0.876511,64064.0,64058.0,0.078019]
[1724533269388,0.0749,64060.0,64059.0,0.203537]
[1724533270887,0.0759,64060.0,64059.0,0.203537]
[1724533271297,0.0769,64060.0,64059.0,0.203537]
[1724533271685,0.0769,64060.0,64059.0,0.078017]
[1724533272097,0.0769,64060.0,64059.0,0.203537]
[1724533272499,0.7985,64060.0,64059.0,0.203537]
[1724533273094,0.7236,64060.0,64059.0,0.911857]
[1724533273393,0.7236,64060.0,64059.0,1.311857]
[1724533275602,0.7236,64060.0,64059.0,1.23384]
[1724533275797,0.7236,64060.0,64059.0,1.311857]
[1724533277406,0.77075899,64060.0,64059.0,1.2572293]
[1724533277594,0.77075899,64060.0,64059.0,0.6172293]
[1724533277794,0.84565899,64060.0,64059.0,0.078017]
[1724533278000,0.93884284,64060.0,64059.0,0.203537]
[1724533278306,0.84565899,64060.0,64059.0,0.203537]
[1724533278497,0.99034063,64060.0,64059.0,0.203537]
[1724533279294,1.14797264,64060.0,64059.0,0.203537]
[1724533279898,1.14797264,64060.0,64059.0,0.1254892]
[1724533280798,1.14797264,64060.0,64059.0,0.2035062]
[1724533281394,1.27183586,64060.0,64059.0,0.2035062]
[1724533282410,1.14797264,64060.0,64059.0,0.2035062]
[1724533283905,1.14797264,64060.0,64059.0,0.203257]
[1724533284210,1.27194317,64060.0,64059.0,0.203257]
[1724533284505,1.14797264,64060.0,64059.0,0.203257]
[1724533284699,1.14608216,64060.0,64059.0,0.203257]
[1724533285310,1.27011577,64060.0,64059.0,0.203257]
[1724533285613,1.14608216,64060.0,64059.0,0.12524]
[1724533285811,1.14608216,64060.0,64059.0,0.203257]
[1724533289406,1.14608216,64060.0,64059.0,0.078017]
[1724533289602,1.0377643,64060.0,64059.0,0.203257]
[1724533290204,0.91362557,64060.0,64059.0,0.203257]
[1724533290613,1.05320489,64060.0,64059.0,0.203257]
[1724533291115,1.00242359,64060.0,64059.0,0.203257]
[1724533291509,0.83872557,64060.0,64059.0,0.203257]
[1724533292114,0.47792557,64060.0,64059.0,0.203257]
[1724533292308,0.47792557,64060.0,64059.0,0.12524]
[1724533292500,0.47792557,64060.0,64059.0,0.203257]
[1724533293206,0.34758216,64060.0,64059.0,1.071577]
[1724533293406,0.19086718,64060.0,64059.0,1.071577]
[1724533293614,0.19086718,64060.0,64059.0,1.116877]
[1724533294415,0.18650392,64060.0,64059.0,1.03886]
[1724533294617,0.18650392,64060.0,64059.0,0.91362]
[1724533294804,0.04346526,64060.0,64059.0,1.03886]
[1724533295013,0.18650392,64060.0,64059.0,1.03886]
[1724533295413,0.02040705,64067.0,64061.0,0.078015]
[1724533295613,0.04314017,64066.0,64065.0,0.31801]
[1724533295814,0.04314017,64066.0,64065.0,0.24]
[1724533296018,0.18528288,64066.0,64065.0,1.06908]
[1724533296422,0.04314017,64066.0,64065.0,1.59432]
[1724533296720,0.03605627,64066.0,64065.0,1.59432]
[1724533297019,0.03606828,64066.0,64065.0,1.59432]
[1724533297218,0.0360441,64067.0,64065.0,1.59432]
[1724533297521,0.0360441,64066.0,64065.0,1.12604]
[1724533297819,0.00023414,64068.0,64066.0,0.46828]
[1724533298120,0.03574747,64067.0,64066.0,0.546289]
[1724533298320,0.03574747,64067.0,64066.0,0.478009]
[1724533298523,0.03574747,64067.0,64066.0,0.946289]
[1724533299416,0.00023414,64068.0,64067.0,0.078008]
[1724533299619,0.00023414,64068.0,64067.0,0.546248]
[1724533299813,0.00023414,64068.0,64067.0,1.071488]
[1724533300009,0.07777622,64068.0,64067.0,1.071488]
[1724533300414,0.00023414,64068.0,64067.0,1.071488]
[1724533300616,0.07754208,64072.0,64071.0,0.078003]
[1724533300819,0.07754208,64072.0,64071.0,0.3608]
[1724533301017,0.0749,64072.0,64068.0,0.078006]
[1724533301327,0.0002,64075.0,64071.0,0.1252]
[1724533301619,0.0749,64072.0,64071.0,0.203203]
[1724533301817,0.3608,64076.0,64071.0,0.1252]
[1724533301818,0.0749,64075.0,64071.0,0.1252]
[1724533302020,0.0749,64075.0,64074.0,0.3608]
[1724533302210,0.11065023,64075.0,64074.0,0.077999]
[1724533303613,0.11065023,64075.0,64074.0,0.080999]
[1724533303813,0.11065023,64075.0,64074.0,0.083999]
[1724533304216,0.18964823,64075.0,64074.0,0.008]
[1724533304417,0.35053134,64075.0,64067.0,0.00023414]
[1724533304619,0.4357,64068.0,64067.0,0.00023414]
[1724533304919,0.47033134,64068.0,64067.0,0.00023414]
[1724533305119,0.47037134,64068.0,64067.0,0.00023414]
[1724533305518,0.54837734,64068.0,64067.0,0.12543414]
[1724533305721,0.54837734,64068.0,64067.0,0.13343414]
[1724533306521,0.59123588,64068.0,64067.0,0.13343414]
[1724533307025,0.59323588,64068.0,64067.0,0.13343414]
[1724533308520,0.440846,64068.0,64067.0,0.13343414]
[1724533308715,0.515746,64068.0,64067.0,0.13343414]
[1724533309117,0.59324276,64068.0,64067.0,0.13343414]
[1724533309327,0.515746,64068.0,64067.0,0.13343414]
[1724533309516,0.59324746,64068.0,64067.0,0.13343414]
[1724533309925,0.55006157,64068.0,64067.0,0.13195414]
[1724533310120,0.47205557,64068.0,64067.0,0.13195414]
[1724533310421,0.43774,64068.0,64067.0,0.13195414]
[1724533310627,0.5152448,64068.0,64067.0,0.13195414]
[1724533310826,0.5152448,64068.0,64067.0,0.20996214]
[1724533311325,0.1544448,64068.0,64067.0,0.20996214]
[1724533311527,0.07694,64068.0,64067.0,0.20996214]
[1724533312018,0.43774,64068.0,64067.0,0.20996214]
[1724533312216,0.51524814,64068.0,64067.0,0.20996214]
[1724533312412,0.43774,64068.0,64067.0,0.20996214]
[1724533312617,0.51525328,64068.0,64067.0,0.20996214]
[1724533313224,0.43774,64068.0,64067.0,0.20996214]
[1724533315726,0.07694,64068.0,64067.0,0.20996214]
[1724533318215,0.07694,64068.0,64067.0,0.13195414]
[1724533318420,0.11138043,64068.0,64067.0,0.13195414]
[1724533318624,0.11138043,64068.0,64067.0,0.20996214]
[1724533319124,0.11138043,64068.0,64067.0,0.13195414]
[1724533320124,0.11138043,64068.0,64067.0,0.20996214]
[1724533320323,0.07694,64068.0,64067.0,0.20996214]
[1724533321931,0.15449125,64068.0,64067.0,0.20996214]
[1724533322420,0.15449125,64068.0,64067.0,0.57076214]
[1724533322421,0.00204,64068.0,64067.0,0.57076214]
[1724533323222,0.00204,64068.0,64067.0,1.31528214]
[1724533323526,0.00204,64068.0,64067.0,1.43900214]
[1724533323929,0.0620478,64071.0,64070.0,0.078004]
[1724533324329,0.0620478,64071.0,64070.0,0.946244]
[1724533324628,0.0620478,64072.0,64071.0,0.078003]
[1724533325029,0.0620478,64072.0,64071.0,0.946243]
[1724533325832,0.0620478,64072.0,64071.0,0.078003]
[1724533326028,0.0620478,64072.0,64071.0,0.546243]
[1724533326235,0.0620478,64072.0,64071.0,0.081003]
[1724533326430,0.0620478,64072.0,64071.0,0.204723]
[1724533327432,0.07755125,64076.0,64074.0,0.077999]
[1724533327834,0.0749,64075.0,64074.0,0.077999]
[1724533328334,0.4357,64075.0,64074.0,0.201719]
[1724533328733,0.4357,64075.0,64074.0,0.077999]
[1724533329324,0.4357,64075.0,64074.0,0.201719]
[1724533330128,0.47052596,64075.0,64074.0,0.201719]
[1724533330540,0.10973931,64075.0,64074.0,0.201719]
[1724533330739,0.15247341,64075.0,64074.0,0.201719]
[1724533331036,0.0749,64075.0,64074.0,0.562519]
[1724533332143,0.10980578,64075.0,64074.0,0.077999]
[1724533332539,0.10980578,64075.0,64074.0,0.201719]
[1724533332870,0.10980578,64075.0,64074.0,0.12372]
[1724533333235,0.10980578,64075.0,64068.0,0.0473]
[1724533333538,0.0749,64071.0,64069.0,0.12372]
[1724533333748,0.03462722,64070.0,64069.0,0.12372]
[1724533334438,0.03462722,64071.0,64069.0,0.12372]
[1724533334643,0.07757742,64070.0,64069.0,0.12372]
[1724533334840,0.15247742,64071.0,64069.0,0.12372]
[1724533335148,0.07757742,64070.0,64069.0,0.12572]
[1724533335544,0.15247742,64070.0,64069.0,0.12572]
[1724533335950,0.15247742,64070.0,64069.0,0.203725]
[1724533337746,0.15247742,64070.0,64069.0,0.202725]
[1724533337937,0.15247742,64070.0,64069.0,0.203725]
[1724533339045,0.07757742,64071.0,64070.0,0.078004]
[1724533339248,0.0749,64071.0,64070.0,0.078004]
[1724533340747,0.0759,64071.0,64070.0,0.078004]
[1724533340939,0.13797084,64071.0,64070.0,0.078004]
[1724533341144,0.13797084,64071.0,64070.0,0.438804]
[1724533341540,0.4367,64071.0,64070.0,0.078004]
[1724533341747,0.4367,64071.0,64070.0,0.03898676]
[1724533341946,0.47142891,64071.0,64070.0,0.03898676]
[1724533343453,0.47142891,64071.0,64067.0,0.00027414]
[1724533343654,0.392907,64068.0,64067.0,0.00027414]
[1724533343852,0.52062756,64068.0,64067.0,0.00027414]
[1724533344246,0.28062756,64068.0,64067.0,0.00027414]
[1724533344447,0.18763591,64068.0,64067.0,0.00027414]
[1724533344660,0.18763591,64068.0,64067.0,0.00427414]
[1724533344949,0.10962891,64068.0,64067.0,0.00527414]
[1724533345459,0.0749,64068.0,64067.0,0.00527414]
[1724533345757,0.0749,64068.0,64067.0,0.08328214]
[1724533347054,0.3608,64069.0,64068.0,0.078007]
[1724533347348,0.07753035,64073.0,64071.0,0.078002]
[1724533347554,0.0749,64073.0,64072.0,0.438802]
[1724533347758,0.15243035,64073.0,64072.0,0.078002]
[1724533347952,0.0749,64073.0,64072.0,0.078002]
[1724533348153,0.0749,64073.0,64072.0,0.078042]
[1724533348353,0.15243035,64073.0,64072.0,0.078042]
[1724533348546,0.07953035,64073.0,64072.0,0.078042]
[1724533348858,0.002,64073.0,64072.0,0.078042]
[1724533349158,0.003,64073.0,64072.0,0.199562]
[1724533349347,0.08053035,64073.0,64072.0,0.199562]
[1724533349552,0.0805223,64073.0,64072.0,0.199562]
[1724533349746,0.0825223,64073.0,64072.0,0.199562]
[1724533349941,0.005,64073.0,64072.0,0.199562]
[1724533350345,0.08252217,64073.0,64072.0,0.199562]
[1724533350748,0.08252217,64073.0,64072.0,0.078042]
[1724533350951,0.08252217,64073.0,64072.0,0.199562]
[1724533351357,0.005,64073.0,64072.0,0.199562]
[1724533351950,0.08252991,64073.0,64072.0,0.22251837]
[1724533352147,0.005,64073.0,64072.0,0.22251837]
[1724533355553,0.0799,64073.0,64072.0,0.22251837]
[1724533356550,0.0799,64073.0,64072.0,0.199562]
[1724533356747,0.15742991,64073.0,64072.0,0.199562]
[1724533358865,0.15742991,64073.0,64072.0,0.12156]
[1724533359164,0.078007,64068.0,64067.0,0.00027414]
[1724533359354,0.54813129,64068.0,64067.0,0.00027414]
[1724533359757,0.54777219,64068.0,64067.0,0.00027414]
[1724533360357,0.54777219,64068.0,64067.0,0.00427414]
[1724533362064,0.54777219,64068.0,64067.0,0.00527414]
[1724533363863,0.54778855,64068.0,64067.0,0.00527414]
[1724533364858,0.54771909,64068.0,64067.0,0.00527414]
[1724533368364,0.47281909,64068.0,64067.0,0.00527414]
[1724533368565,0.54771909,64068.0,64067.0,0.00527414]
[1724533369567,0.54767663,64068.0,64067.0,0.00527414]
[1724533371179,0.56978921,64068.0,64067.0,0.00527414]
[1724533371469,0.56978921,64068.0,64059.0,0.1202]
[1724533371470,0.078011,64065.0,64059.0,0.1202]
[1724533371666,0.438816,64060.0,64059.0,0.1202]
[1724533371974,0.59119176,64060.0,64059.0,0.1202]
[1724533372772,0.59219176,64060.0,64059.0,0.1262]
[1724533373564,0.59319176,64060.0,64059.0,0.1262]
[1724533374971,0.51517576,64060.0,64059.0,0.1262]
[1724533375174,0.4377,64060.0,64059.0,0.1262]
[1724533379467,0.51517714,64060.0,64059.0,0.1262]
[1724533380565,0.5151717,64060.0,64059.0,0.1262]
[1724533380765,0.43774,64060.0,64059.0,0.1262]
[1724533381273,0.51517173,64060.0,64059.0,0.1262]
[1724533383375,0.43774,64060.0,64059.0,0.1262]
[1724533383573,0.51518205,64060.0,64059.0,0.1262]
[1724533385381,0.43774,64060.0,64059.0,0.1262]
[1724533385774,0.53774,64060.0,64059.0,0.1262]
[1724533386275,0.57162985,64060.0,64059.0,0.1262]
[1724533386978,0.57162995,64060.0,64059.0,0.08717351]
[1724533388473,0.57124202,64060.0,64059.0,0.08717351]
[1724533388671,0.53674,64060.0,64059.0,0.08217351]
[1724533388874,0.56920167,64060.0,64059.0,0.08517351]
[1724533390481,0.64721767,64060.0,64059.0,0.08517351]
[1724533391672,0.64717582,64060.0,64059.0,0.08517351]
[1724533391879,0.64717582,64060.0,64059.0,0.03053332]
[1724533392273,0.76246863,64060.0,64059.0,0.03053332]
[1724533392479,0.64717582,64060.0,64059.0,0.03053332]
[1724533392680,0.76227455,64060.0,64059.0,0.03053332]
[1724533392981,0.64717582,64060.0,64059.0,0.03053332]
[1724533395088,0.46915982,64060.0,64059.0,0.03053332]
[1724533395789,0.46915982,64060.0,64059.0,0.13053332]
[1724533397386,0.46915982,64060.0,64059.0,0.03053332]
[1724533397791,0.56224922,64060.0,64059.0,0.03053332]
[1724533398394,0.46915982,64060.0,64059.0,0.03053332]
[1724533398992,0.56226274,64060.0,64059.0,0.03053332]
[1724533399383,0.56227791,64060.0,64059.0,0.03053332]
[1724533400096,0.10835982,64060.0,64059.0,0.13053332]
[1724533400302,0.46915982,64060.0,64059.0,0.13053332]
[1724533400892,0.46887911,64060.0,64059.0,0.13053332]
[1724533405400,0.5619972,64060.0,64059.0,0.13053332]
[1724533405800,0.46887911,64060.0,64059.0,0.13053332]
[1724533408009,0.5619972,64060.0,64059.0,0.13053332]
[1724533409402,0.46887911,64060.0,64059.0,0.13053332]
[1724533409608,0.5619972,64060.0,64059.0,0.13053332]
[1724533410411,0.56188299,64060.0,64059.0,0.13053332]
[1724533410709,0.56188299,64060.0,64059.0,0.03053332]
[1724533410710,0.4687649,64060.0,64059.0,0.03053332]
[1724533410915,0.4687649,64060.0,64059.0,0.2224]
[1724533412614,0.1079649,64060.0,64059.0,0.2224]
[1724533415305,0.10819938,64060.0,64059.0,0.2224]
[1724533415701,0.10819938,64060.0,64059.0,0.300418]
[1724533415908,0.03329938,64060.0,64059.0,0.300418]
[1724533416105,4e-05,64060.0,64059.0,0.300418]
[1724533418109,0.0775244,64060.0,64059.0,0.300418]
[1724533418315,0.0775244,64060.0,64059.0,0.346818]
[1724533418715,0.0775244,64060.0,64059.0,0.228418]
[1724533419309,0.0775244,64060.0,64059.0,0.346818]
[1724533421205,4e-05,64060.0,64059.0,0.343718]
[1724533422010,4e-05,64060.0,64059.0,0.225318]
[1724533422208,4e-05,64060.0,64059.0,0.343718]
[1724533422819,0.03324699,64060.0,64059.0,0.125318]
[1724533423018,0.16805809,64060.0,64059.0,0.1193]
[1724533423318,0.20126508,64060.0,64059.0,0.1193]
[1724533423512,0.10814699,64060.0,64059.0,0.1193]
[1724533424120,0.10782411,64060.0,64059.0,0.1193]
[1724533424511,0.07494,64060.0,64059.0,0.1193]
[1724533424719,0.10782411,64060.0,64059.0,0.1193]
[1724533425113,0.1078271,64060.0,64059.0,0.1193]
[1724533425617,0.07494,64060.0,64059.0,0.1193]
[1724533425816,0.10779356,64060.0,64059.0,0.1193]
[1724533426318,0.20075683,64060.0,64059.0,0.2193]
[1724533426714,0.10779356,64060.0,64059.0,0.2193]
[1724533426922,0.22308604,64060.0,64059.0,0.2193]
[1724533427312,0.13012603,64060.0,64059.0,0.2193]
[1724533428218,0.10779356,64060.0,64059.0,0.2193]
[1724533430223,0.20075387,64060.0,64059.0,0.2193]
[1724533430616,0.1079592,64060.0,64059.0,0.2193]
[1724533430824,0.20091841,64060.0,64059.0,0.2193]
[1724533431128,0.56171841,64060.0,64059.0,0.2193]
[1724533431427,0.4687592,64060.0,64059.0,0.2193]
[1724533431826,0.4687592,64060.0,64059.0,0.18027235]
[1724533433120,0.56171534,64060.0,64059.0,0.18027235]
[1724533433320,0.4687592,64060.0,64059.0,0.18027235]
[1724533434629,0.56171256,64060.0,64059.0,0.18027235]
[1724533434825,0.4687592,64060.0,64059.0,0.21952]
[1724533435321,0.46834811,64060.0,64059.0,0.21952]
[1724533436224,0.46834811,64060.0,64059.0,0.16488012]
[1724533438227,0.58014352,64060.0,64059.0,0.16488012]
[1724533438733,0.65815952,64060.0,64059.0,0.1]
[1724533439726,0.54636411,64060.0,64059.0,0.1]
[1724533440031,0.54588399,64060.0,64059.0,0.1]
[1724533442535,0.63878817,64060.0,64059.0,0.1]
[1724533443037,0.46786799,64060.0,64059.0,0.1]
[1724533443235,0.56077294,64060.0,64059.0,0.1]
[1724533444427,0.46786799,64060.0,64059.0,0.1]
[1724533444822,0.56079371,64060.0,64059.0,0.1]
[1724533446138,0.46786799,64060.0,64059.0,0.1]
[1724533446437,0.56079371,64060.0,64059.0,0.1]
[1724533447236,0.46786799,64060.0,64059.0,0.178018]
[1724533447734,0.46786799,64060.0,64059.0,0.078018]
[1724533447942,0.46786799,64060.0,64059.0,0.178018]
[1724533448837,0.46799228,64060.0,64059.0,0.178018]
[1724533449040,0.46799228,64060.0,64059.0,0.078018]
[1724533449334,0.46799228,64060.0,64059.0,0.178018]
[1724533453128,0.4680797,64060.0,64059.0,0.178018]
[1724533453730,0.4680797,64060.0,64059.0,0.078018]
[1724533454047,0.4680797,64060.0,64059.0,0.178018]
[1724533457335,0.4680797,64060.0,64059.0,0.1]
[1724533457835,0.4680384,64060.0,64059.0,0.1]
[1724533458928,0.56096412,64060.0,64059.0,0.1]
[1724533459134,0.4680384,64060.0,64059.0,0.1]
[1724533459333,0.4680384,64060.0,64057.0,0.0468]
[1724533459646,0.45380723,64060.0,64059.0,0.1]
[1724533459941,0.39310878,64060.0,64059.0,0.1]
[1724533460146,0.46800878,64060.0,64059.0,0.1]
[1724533460641,0.46900878,64060.0,64059.0,0.1]
[1724533461138,0.47000878,64060.0,64059.0,0.1]
[1724533461529,0.46900878,64060.0,64059.0,0.101]
[1724533461729,0.47000878,64060.0,64059.0,0.101]
[1724533462336,0.54802478,64060.0,64059.0,0.001]
[1724533464241,0.54802478,64060.0,64059.0,0.101]
[1724533465740,0.47000878,64060.0,64059.0,0.101]
[1724533467838,0.47000878,64060.0,64059.0,0.001]
[1724533468149,0.47000878,64060.0,64059.0,0.101]
[1724533470952,0.47000878,64060.0,64059.0,0.001]
[1724533471150,0.47000878,64060.0,64059.0,0.101]
[1724533474156,0.47000878,64060.0,64059.0,0.001]
[1724533474556,0.47000878,64060.0,64059.0,0.101]
[1724533476645,0.48809345,64060.0,64059.0,0.179018]
[1724533476949,0.39510878,64060.0,64059.0,0.179018]
[1724533477750,0.39510878,64060.0,64059.0,0.078018]
[1724533477959,0.39510878,64060.0,64059.0,0.178018]
[1724533483759,0.47000878,64060.0,64059.0,0.178018]
[1724533484969,0.47000878,64060.0,64059.0,0.1]
[1724533485867,0.47000878,64060.0,64059.0,0.2188]
[1724533486064,0.57000878,64060.0,64059.0,0.1188]
[1724533486269,0.57000878,64060.0,64057.0,0.1188]
[1724533486573,0.03226878,64059.0,64057.0,0.1188]
[1724533486774,0.0749,64058.0,64057.0,0.1188]
[1724533486969,0.10716878,64058.0,64057.0,0.1188]
[1724533487163,0.10720878,64058.0,64057.0,0.1188]
[1724533487971,0.15241403,64058.0,64057.0,0.55762]
[1724533488173,4e-05,64058.0,64057.0,0.60441421]
[1724533488374,0.00104,64058.0,64057.0,0.60441421]
[1724533489174,0.00204,64058.0,64057.0,0.70441421]
[1724533490671,0.07694,64058.0,64057.0,0.29682]
[1724533493184,0.15441403,64058.0,64057.0,0.29682]
[1724533494574,0.07694,64058.0,64057.0,0.29682]
[1724533496177,0.10913685,64058.0,64057.0,0.29682]
[1724533496776,0.07694,64058.0,64057.0,0.29682]
[1724533496976,0.10913626,64058.0,64057.0,0.29682]
[1724533497380,0.07694,64058.0,64057.0,0.29682]
[1724533497971,0.10914059,64058.0,64057.0,0.29682]
[1724533498183,0.07694,64058.0,64057.0,0.29682]
[1724533498582,0.10913551,64058.0,64057.0,0.29682]
[1724533499879,0.07694,64058.0,64057.0,0.29682]
[1724533500082,0.10913438,64058.0,64057.0,0.29682]
[1724533500276,0.10913438,64058.0,64054.0,0.04679421]
[1724533500277,0.20913438,64058.0,64054.0,0.04679421]
[1724533500473,0.078026,64052.0,64048.0,0.2675]
[1724533500673,0.4357,64049.0,64048.0,0.2675]
[1724533500877,0.46789438,64049.0,64048.0,0.2675]
[1724533501475,0.46793438,64049.0,64048.0,0.2675]
[1724533502182,0.46893438,64049.0,64048.0,0.2675]
[1724533502372,0.46835814,64049.0,64048.0,0.2675]
[1724533502778,0.43674,64049.0,64048.0,0.2675]
[1724533503186,0.43774,64049.0,64048.0,0.2675]
[1724533503778,0.51511736,64049.0,64048.0,0.2675]
[1724533503984,0.51511755,64049.0,64048.0,0.2675]
[1724533504181,0.51511679,64049.0,64048.0,0.2675]
[1724533504483,0.51510934,64049.0,64048.0,0.2675]
[1724533505474,0.43774,64049.0,64048.0,0.2675]